bitfinex/quotes_SOLUSD_20250330
["timestamp","ask_amount","ask_price","bid_price","bid_amount"]
[1743331934639,15.9743,125.45,125.44,0.063]
[1743331934840,63.9743,125.45,125.44,0.063]
[1743331935050,74.62094886,125.45,125.44,0.063]
[1743331938967,74.76311043,125.45,125.44,0.063]
[1743331942262,56.11346157,125.45,125.44,0.063]
[1743331942452,74.76311043,125.45,125.44,0.063]
[1743331942853,56.11346157,125.45,125.44,0.063]
[1743331943055,7.9708,125.46,125.44,0.063]
[1743331943244,0.063,125.47,125.44,118.99846422]
[1743331945440,0.063,125.47,125.44,126.97036422]
[1743331946260,0.063,125.47,125.44,118.99846422]
[1743331947963,0.063,125.47,125.44,126.97036422]
[1743331949264,0.063,125.47,125.44,118.99846422]
[1743331953374,0.063,125.47,125.44,126.97016422]
[1743331956659,0.063,125.47,125.44,207.27215122]
[1743331956982,0.063,125.47,125.44,227.20195122]
[1743331959080,0.063,125.48,125.47,118.87246422]
[1743331959290,0.063,125.48,125.47,213.81865122]
[1743331960563,0.063,125.48,125.47,221.78865122]
[1743331965390,0.063,125.48,125.47,240.43830008]
[1743331966295,0.063,125.49,125.47,240.43830008]
[1743331966296,0.063,125.49,125.48,18.64964886]
[1743331967184,0.03,125.51,125.49,80.238987]
[1743331967498,0.03,125.51,125.5,7.9681]
[1743331969977,0.03,125.51,125.49,88.207387]
[1743331971208,0.03,125.51,125.5,6.92]
[1743331972017,0.03,125.51,125.5,14.8881]
[1743331975708,0.03,125.51,125.5,213.99955122]
[1743331998424,0.03,125.51,125.5,199.11145122]
[1743331999032,0.03,125.51,125.5,80.238987]
[1743332002716,8.13956157,125.51,125.5,80.238987]
[1743332003010,6.59916157,125.5,125.49,118.93546422]
[1743332004922,14.56726157,125.5,125.49,118.93546422]
[1743332006138,14.56726157,125.5,125.49,0.063]
[1743332008835,49.6186,125.51,125.49,0.063]
[1743332009023,0.03,125.51,125.49,0.063]
[1743332010835,48.03,125.51,125.49,0.063]
[1743332012935,7.9977,125.51,125.49,0.063]
[1743332014128,0.03,125.51,125.49,0.063]
[1743332014317,0.03,125.51,125.49,118.93546422]
[1743332019734,0.03,125.51,125.49,0.063]
[1743332020040,66.67964886,125.51,125.49,0.063]
[1743332020623,48.03,125.51,125.49,0.063]
[1743332021748,7.9681,125.5,125.49,0.063]
[1743332024150,8.11026157,125.5,125.49,0.063]
[1743332031133,55.9977,125.51,125.49,0.063]
[1743332033458,8.11026157,125.5,125.49,0.063]
[1743332033655,74.75991043,125.5,125.49,0.063]
[1743332035256,56.11026157,125.5,125.49,0.063]
[1743332035461,74.75991043,125.5,125.49,0.063]
[1743332037656,56.11026157,125.5,125.49,0.063]
[1743332043263,56.14026157,125.5,125.49,0.063]
[1743332043763,74.78991043,125.5,125.49,0.063]
[1743332047464,82.79291043,125.5,125.49,0.063]
[1743332051271,48.0,125.48,125.47,0.063]
[1743332051447,74.65264886,125.48,125.47,0.063]
[1743332053272,82.62194886,125.48,125.47,0.063]
[1743332054776,82.76411043,125.48,125.47,0.063]
[1743332055374,89.15819677,125.48,125.47,0.063]
[1743332056274,82.76411043,125.48,125.47,0.063]
[1743332056463,74.76111043,125.48,125.47,0.063]
[1743332057076,82.75711043,125.48,125.47,0.063]
[1743332058965,74.76111043,125.48,125.47,0.063]
[1743332059176,82.75711043,125.48,125.47,0.063]
[1743332059475,74.76111043,125.48,125.47,0.063]
[1743332060166,82.75711043,125.48,125.47,0.063]
[1743332063756,74.76111043,125.48,125.47,0.063]
[1743332063956,82.75711043,125.48,125.47,0.063]
[1743332065690,74.76111043,125.48,125.47,0.063]
[1743332065883,82.75711043,125.48,125.47,0.063]
[1743332066686,74.76111043,125.48,125.47,0.063]
[1743332070988,82.75711043,125.48,125.47,0.063]
[1743332075682,86.67464577,125.48,125.47,0.063]
[1743332076683,82.75711043,125.48,125.47,0.063]
[1743332080089,86.7285843,125.48,125.47,0.063]
[1743332080578,93.6485843,125.48,125.47,0.063]
[1743332081188,93.6485843,125.48,125.47,0.0001]
[1743332095005,101.36486079,125.48,125.47,0.0001]
[1743332095193,125.35486079,125.48,125.47,0.0001]
[1743332095390,101.36486079,125.48,125.47,0.0001]
[1743332097491,101.86486079,125.48,125.47,0.0001]
[1743332100798,112.42827853,125.48,125.47,0.0001]
[1743332100989,111.92827853,125.48,125.47,0.0001]
[1743332101192,112.42827853,125.48,125.47,0.0001]
[1743332102500,111.92827853,125.48,125.47,0.0001]
[1743332104615,111.95827853,125.48,125.47,0.0001]
[1743332115614,135.95827853,125.48,125.47,0.0001]
[1743332115807,111.95827853,125.48,125.47,0.0001]
[1743332118920,135.95827853,125.48,125.47,0.0001]
[1743332119108,136.45827853,125.48,125.47,0.0001]
[1743332120221,94.64564886,125.45,125.44,0.063]
[1743332121025,94.64564886,125.45,125.42,1.6109]
[1743332122219,56.11466157,125.43,125.42,1.6109]
[1743332127927,56.11466157,125.43,125.42,1.6739]
[1743332130903,74.76431043,125.43,125.42,1.6739]
[1743332131109,74.76431043,125.43,125.42,0.063]
[1743332131424,74.76431043,125.43,125.34,0.063]
[1743332131425,68.5,125.38,125.34,0.063]
[1743332131610,48.0,125.34,125.32,6.5617]
[1743332131811,7.9789,125.33,125.32,6.5617]
[1743332134512,7.9789,125.33,125.32,8.0926]
[1743332134929,55.9789,125.33,125.32,8.0926]
[1743332135519,7.9789,125.33,125.32,8.0926]
[1743332135932,8.12106157,125.33,125.32,1.5309]
[1743332136634,0.14216157,125.32,125.31,0.063]
[1743332137340,8.12166157,125.32,125.31,0.063]
[1743332144129,7.9795,125.32,125.31,0.063]
[1743332144342,26.62784886,125.34,125.31,0.063]
[1743332144640,7.9782,125.34,125.31,0.063]
[1743332145822,7.9782,125.34,125.31,118.93546422]
[1743332149441,7.977,125.36,125.31,199.17445122]
[1743332149650,7.977,125.36,125.32,1.5547]
[1743332154739,7.977,125.36,125.32,120.42716422]
[1743332155642,56.0181,125.35,125.32,120.42716422]
[1743332160556,56.0181,125.35,125.32,1.5547]
[1743332162158,75.9622,125.35,125.31,199.17445122]
[1743332162535,76.0252,125.35,125.31,199.17445122]
[1743332165067,7.9789,125.33,125.31,199.17445122]
[1743332166349,7.9789,125.33,125.31,80.301987]
[1743332169963,68.0471,125.35,125.31,80.301987]
[1743332170153,8.0408,125.35,125.31,80.301987]
[1743332172268,8.0408,125.35,125.31,199.17445122]
[1743332172769,8.0408,125.35,125.31,207.15455122]
[1743332173757,0.063,125.35,125.31,207.15455122]
[1743332179190,0.063,125.35,125.33,6.6028]
[1743332181586,0.063,125.35,125.34,7.9782]
[1743332185175,0.063,125.35,125.33,213.69285122]
[1743332186985,0.063,125.35,125.33,205.71425122]
[1743332188396,0.063,125.35,125.33,213.69305122]
[1743332191982,0.063,125.35,125.34,1.6283]
[1743332192792,56.0138,125.42,125.35,118.80946422]
[1743332192980,56.0138,125.42,125.37,7.9763]
[1743332194299,56.0138,125.42,125.36,14.8968]
[1743332194793,56.0138,125.42,125.36,6.92]
[1743332194997,75.9468,125.42,125.36,6.92]
[1743332196395,66.68964886,125.41,125.36,6.92]
[1743332197299,7.9744,125.4,125.36,6.92]
[1743332198590,7.9744,125.4,125.36,125.72946422]
[1743332201302,0.14216157,125.39,125.36,6.92]
[1743332201600,0.14216157,125.39,125.35,199.04845122]
[1743332202679,7.9757,125.38,125.35,199.04845122]
[1743332209809,8.0057,125.38,125.35,199.04845122]
[1743332210305,8.0057,125.38,125.35,80.238987]
[1743332211331,66.68964886,125.37,125.35,80.238987]
[1743332212004,66.68964886,125.37,125.33,118.87246422]
[1743332212896,48.04,125.36,125.33,118.87246422]
[1743332213096,48.04,125.36,125.33,0.063]
[1743332213417,7.9776,125.35,125.33,0.063]
[1743332214921,56.0172,125.36,125.33,0.063]
[1743332215722,20.11186157,125.38,125.33,0.063]
[1743332215907,7.9763,125.37,125.33,0.063]
[1743332216409,7.9763,125.37,125.33,199.11145122]
[1743332221626,75.9572,125.37,125.33,199.11145122]
[1743332222208,75.9572,125.37,125.33,80.301987]
[1743332222709,66.68964886,125.36,125.33,80.301987]
[1743332223931,56.0176,125.35,125.33,80.301987]
[1743332225831,0.14216157,125.34,125.33,80.301987]
[1743332227925,8.12036157,125.34,125.33,0.063]
[1743332228318,74.81001043,125.34,125.33,0.063]
[1743332231029,82.70837686,125.34,125.33,0.063]
[1743332231429,89.01995396,125.34,125.33,0.063]
[1743332231934,48.04,125.32,125.31,0.063]
[1743332233436,56.16166157,125.32,125.31,0.063]
[1743332235140,74.81131043,125.32,125.31,0.063]
[1743332236819,56.16166157,125.32,125.31,0.063]
[1743332244047,74.81131043,125.32,125.31,0.063]
[1743332246047,82.80731043,125.32,125.31,0.063]
[1743332247139,84.32501043,125.32,125.31,0.063]
[1743332249053,74.81131043,125.32,125.31,0.063]
[1743332250046,82.80731043,125.32,125.31,0.063]
[1743332253350,48.04,125.3,125.29,0.063]
[1743332255755,56.0208,125.3,125.29,0.063]
[1743332256050,74.67044886,125.3,125.29,0.063]
[1743332256849,74.81261043,125.3,125.29,0.063]
[1743332267059,92.89630494,125.3,125.29,0.063]
[1743332267359,84.90030494,125.3,125.29,0.063]
[1743332267867,56.0203,125.31,125.29,0.063]
[1743332268162,56.0202,125.31,125.29,0.063]
[1743332268336,48.04,125.31,125.29,0.063]
[1743332268955,56.0203,125.31,125.29,0.063]
[1743332278466,66.68964886,125.3,125.29,0.063]
[1743332279743,74.68564886,125.3,125.29,0.063]
[1743332280472,82.66644886,125.3,125.29,0.063]
[1743332280850,74.67044886,125.3,125.29,0.063]
[1743332281165,56.0208,125.3,125.29,0.063]
[1743332284279,8.0434,125.31,125.29,0.063]
[1743332286376,48.04,125.3,125.29,0.063]
[1743332288179,0.063,125.31,125.29,0.063]
[1743332289680,8.0433,125.31,125.29,0.063]
[1743332290159,56.0833,125.31,125.29,0.063]
[1743332290359,0.14216157,125.3,125.29,0.063]
[1743332291480,8.12296157,125.3,125.29,0.063]
[1743332296887,56.16296157,125.3,125.29,0.063]
[1743332300386,74.81261043,125.3,125.29,0.063]
[1743332304274,82.80861043,125.3,125.29,0.063]
[1743332306579,74.81261043,125.3,125.29,0.063]
[1743332312808,66.68964886,125.29,125.28,0.063]
[1743332313021,73.58964886,125.29,125.28,0.063]
[1743332313597,93.73181043,125.29,125.28,0.063]
[1743332314903,101.71321043,125.29,125.28,0.063]
[1743332317099,101.57104886,125.29,125.27,0.063]
[1743332319501,109.56704886,125.29,125.27,0.063]
[1743332320800,0.14216157,125.28,125.27,0.063]
[1743332321285,74.81391043,125.28,125.27,0.063]
[1743332325103,66.83181043,125.28,125.27,0.063]
[1743332325323,48.18216157,125.28,125.27,0.063]
[1743332326901,56.17816157,125.28,125.27,0.063]
[1743332327101,48.18216157,125.28,125.27,0.063]
[1743332327296,74.81391043,125.28,125.27,0.063]
[1743332333524,81.71391043,125.28,125.27,0.063]
[1743332336994,89.70991043,125.28,125.27,0.063]
[1743332338109,89.77291043,125.28,125.27,0.063]
[1743332338602,66.68964886,125.25,125.22,1.2285]
[1743332340224,74.67424886,125.25,125.22,1.2285]
[1743332343031,8.12706157,125.24,125.22,1.2285]
[1743332346935,48.04,125.23,125.22,1.2285]
[1743332350435,48.04,125.23,125.22,1.2585]
[1743332351136,7.9853,125.23,125.22,1.2585]
[1743332352040,56.16706157,125.24,125.22,1.2585]
[1743332359251,56.16706157,125.24,125.22,0.03]
[1743332361053,48.18216157,125.24,125.22,0.03]
[1743332362844,48.24516157,125.24,125.22,0.03]
[1743332364448,56.22986157,125.24,125.22,0.03]
[1743332366876,66.68964886,125.23,125.22,0.03]
[1743332368646,74.67494886,125.23,125.22,0.03]
[1743332368853,66.68964886,125.23,125.22,0.03]
[1743332369853,0.063,125.24,125.22,0.03]
[1743332374873,0.20516157,125.24,125.22,0.03]
[1743332375965,74.87961043,125.24,125.22,0.03]
[1743332386281,66.89481043,125.24,125.22,0.03]
[1743332387073,0.20516157,125.24,125.22,0.03]
[1743332389661,8.18976157,125.24,125.22,0.03]
[1743332398389,48.04,125.23,125.22,0.03]
[1743332400090,56.0253,125.23,125.22,0.03]
[1743332400794,74.67494886,125.23,125.22,0.03]
[1743332401374,74.81711043,125.23,125.22,0.03]
[1743332402389,66.83181043,125.23,125.22,0.03]
[1743332402974,48.18216157,125.23,125.22,0.03]
[1743332403600,48.04,125.23,125.22,0.03]
[1743332403788,0.063,125.24,125.22,0.03]
[1743332404266,0.063,125.24,125.22,124.90366422]
[1743332404765,0.063,125.24,125.23,1.6376]
[1743332410689,0.063,125.24,125.22,124.90366422]
[1743332411297,0.063,125.24,125.22,118.83946422]
[1743332411723,0.063,125.24,125.22,0.03]
[1743332416993,0.063,125.24,125.22,1.659]
[1743332417492,0.063,125.24,125.23,6.9]
[1743332421527,0.063,125.24,125.23,125.70946422]
[1743332426330,0.063,125.24,125.23,118.80946422]
[1743332427328,0.063,125.24,125.22,127.36846422]
[1743332428622,0.063,125.24,125.22,125.73946422]
[1743332428830,0.063,125.24,125.22,0.03]
[1743332429905,48.103,125.24,125.22,0.03]
[1743332433440,0.14216157,125.23,125.22,0.03]
[1743332435837,66.83181043,125.23,125.22,0.03]
[1743332438841,0.14216157,125.23,125.22,0.03]
[1743332439045,48.103,125.24,125.22,0.03]
[1743332441133,0.063,125.24,125.22,0.03]
[1743332441332,0.063,125.24,125.22,6.93]
[1743332444951,0.063,125.24,125.22,125.73946422]
[1743332450848,0.14216157,125.23,125.22,0.03]
[1743332451969,48.18216157,125.23,125.22,0.03]
[1743332453750,66.83181043,125.23,125.22,0.03]
[1743332459337,86.68964886,125.22,125.17,7.6716]
[1743332459545,66.68964886,125.2,125.17,7.6716]
[1743332459752,74.70164886,125.2,125.17,7.6716]
[1743332459952,66.68964886,125.2,125.17,7.6716]
[1743332461263,66.68964886,125.2,125.16,0.03]
[1743332464357,0.14216157,125.19,125.16,0.03]
[1743332466889,211.28,125.22,125.16,0.03]
[1743332467077,0.063,125.24,125.16,126.23946422]
[1743332467598,0.063,125.24,125.16,125.73946422]
[1743332467886,0.063,125.24,125.2,0.5]
[1743332468088,0.063,125.24,125.21,6.9]
[1743332469297,0.063,125.24,125.23,20.0]
[1743332469596,0.063,125.24,125.23,138.80946422]
[1743332469893,0.063,125.24,125.23,118.80946422]
[1743332474393,0.063,125.24,125.21,205.94845122]
[1743332477710,0.063,125.24,125.23,20.0]
[1743332479095,0.063,125.24,125.21,205.94845122]
[1743332481293,0.063,125.24,125.23,20.0]
[1743332486012,0.063,125.24,125.23,138.80946422]
[1743332489908,0.063,125.24,125.23,219.04845122]
[1743332491796,0.063,125.24,125.23,219.54845122]
[1743332501214,0.063,125.24,125.23,219.04845122]
[1743332501518,0.063,125.24,125.23,219.54845122]
[1743332504599,0.063,125.24,125.23,238.19810008]
[1743332506921,0.063,125.24,125.23,237.69810008]
[1743332507297,0.063,125.24,125.23,238.19810008]
[1743332509307,0.063,125.24,125.23,219.54845122]
[1743332509529,0.063,125.25,125.24,119.24646422]
[1743332509700,0.063,125.25,125.24,118.74646422]
[1743332509901,0.063,125.25,125.24,119.24646422]
[1743332515407,0.063,125.25,125.24,199.48545122]
[1743332516321,0.063,125.25,125.24,198.98545122]
[1743332524660,0.063,125.25,125.24,199.48545122]
[1743332525747,0.063,125.25,125.24,199.51545122]
[1743332526866,0.063,125.25,125.24,199.01545122]
[1743332527750,1.6799,125.25,125.24,0.03]
[1743332528129,0.063,125.25,125.24,0.03]
[1743332528362,0.063,125.25,125.24,118.77646422]
[1743332528853,0.063,125.25,125.24,199.01545122]
[1743332538368,0.063,125.25,125.24,218.16510008]
[1743332541675,0.063,125.25,125.24,199.01545122]
[1743332541854,0.063,125.25,125.24,205.89545122]
[1743332547084,0.063,125.25,125.24,224.54510008]
[1743332549095,0.063,125.25,125.24,224.82942322]
[1743332549300,0.063,125.28,125.26,19.14964886]
[1743332549594,0.063,125.28,125.26,218.13510008]
[1743332549768,0.063,125.28,125.26,199.48545122]
[1743332551711,0.063,125.28,125.27,18.64964886]
[1743332552102,0.063,125.28,125.27,19.14964886]
[1743332552399,0.063,125.28,125.27,18.64964886]
[1743332552592,0.063,125.28,125.27,19.14964886]
[1743332553510,0.063,125.28,125.27,99.38863586]
[1743332559505,0.063,125.3,125.28,118.68346422]
[1743332559687,0.063,125.3,125.29,6.88]
[1743332559889,0.063,125.3,125.29,205.80245122]
[1743332585250,0.063,125.3,125.29,80.238987]
[1743332587816,0.063,125.3,125.29,87.118987]
[1743332588319,0.063,125.3,125.29,205.80245122]
[1743332594236,0.063,125.31,125.3,118.62046422]
[1743332594432,0.063,125.31,125.3,138.05443622]
[1743332597539,0.063,125.31,125.3,218.29342322]
[1743332602332,0.03,125.38,125.35,20.0]
[1743332602532,0.03,125.38,125.36,6.88]
[1743332603226,0.03,125.38,125.36,205.67645122]
[1743332605845,0.03,125.38,125.36,225.11042322]
[1743332606345,0.03,125.38,125.36,205.67645122]
[1743332612660,0.03,125.38,125.36,198.79645122]
[1743332612847,0.03,125.38,125.36,205.67645122]
[1743332614766,1.5542,125.38,125.36,198.79645122]
[1743332616059,7.8186,125.38,125.34,125.50046422]
[1743332617058,7.8186,125.38,125.34,118.62046422]
[1743332618158,0.20516157,125.37,125.34,118.62046422]
[1743332618546,66.91481043,125.37,125.3,198.82645122]
[1743332618744,66.91481043,125.37,125.31,6.88]
[1743332623647,66.91481043,125.37,125.3,205.70645122]
[1743332626567,48.06,125.34,125.3,198.82645122]
[1743332626754,54.165,125.34,125.3,80.205987]
[1743332627067,18.64964886,125.33,125.3,80.205987]
[1743332627372,49.6679,125.32,125.3,80.205987]
[1743332628274,1.6079,125.32,125.3,80.205987]
[1743332628654,1.6079,125.32,125.3,0.03]
[1743332631975,24.75464886,125.34,125.3,0.03]
[1743332631976,0.063,125.37,125.35,20.0]
[1743332632179,0.063,125.37,125.36,6.88]
[1743332635083,0.063,125.37,125.36,7.38]
[1743332635268,0.063,125.37,125.36,205.67645122]
[1743332635468,0.063,125.37,125.36,206.17645122]
[1743332642368,0.063,125.37,125.36,224.32610008]
[1743332642570,0.063,125.37,125.36,224.82610008]
[1743332644297,0.063,125.37,125.36,206.17645122]
[1743332644596,0.063,125.37,125.36,224.82610008]
[1743332646673,0.063,125.37,125.36,205.67645122]
[1743332679090,0.063,125.37,125.36,224.61042322]
[1743332679698,0.063,125.37,125.36,205.67645122]
[1743332680924,0.063,125.37,125.36,198.79645122]
[1743332681510,6.4281,125.37,125.33,118.65046422]
[1743332681824,54.4881,125.37,125.33,0.03]
[1743332683104,66.70964886,125.36,125.33,0.03]
[1743332684002,1.5481,125.35,125.33,0.03]
[1743332685125,0.14216157,125.34,125.33,0.03]
[1743332687811,18.79181043,125.34,125.33,0.03]
[1743332688011,25.15691043,125.34,125.3,0.03]
[1743332692032,25.21991043,125.34,125.3,0.03]
[1743332695537,1.6655,125.33,125.3,0.03]
[1743332696316,66.70964886,125.32,125.3,0.03]
[1743332697841,0.14216157,125.31,125.3,0.03]
[1743332702236,48.06,125.29,125.28,0.03]
[1743332702435,66.70964886,125.29,125.28,0.03]
[1743332704234,66.70964886,125.29,125.24,0.03]
[1743332704235,48.06,125.27,125.24,0.03]
[1743332705032,7.8014,125.31,125.24,0.03]
[1743332705242,66.70964886,125.28,125.24,0.03]
[1743332705426,0.14216157,125.27,125.24,0.03]
[1743332706921,18.79181043,125.27,125.24,0.03]
[1743332707935,0.14216157,125.27,125.24,0.03]
[1743332708144,48.06,125.28,125.24,0.03]
[1743332711360,55.9348,125.26,125.24,0.03]
[1743332711648,66.85181043,125.25,125.24,0.03]
[1743332722637,18.79181043,125.25,125.24,0.03]
[1743332722839,211.26,125.27,125.24,0.03]
[1743332726345,0.063,125.31,125.24,124.94346422]
[1743332726546,0.063,125.31,125.24,205.11945122]
[1743332726745,0.063,125.31,125.27,20.0]
[1743332727048,0.063,125.31,125.28,1.5395]
[1743332731939,0.063,125.31,125.29,6.293]
[1743332732339,0.063,125.31,125.29,124.91346422]
[1743332736147,0.063,125.31,125.29,205.08945122]
[1743332741647,0.063,125.31,125.29,198.79645122]
[1743332742146,0.063,125.31,125.29,205.67645122]
[1743332762609,0.063,125.31,125.29,87.055987]
[1743332762816,0.063,125.31,125.29,80.175987]
[1743332767520,0.063,125.31,125.28,118.65046422]
[1743332768622,0.063,125.31,125.29,1.6458]
[1743332768831,0.063,125.31,125.3,6.88]
[1743332768996,0.063,125.31,125.3,205.67645122]
[1743332772330,0.063,125.31,125.3,212.15475122]
[1743332772622,0.063,125.31,125.3,230.80440008]
[1743332775718,0.063,125.31,125.3,212.15475122]
[1743332775919,0.063,125.31,125.3,205.67645122]
[1743332776802,0.063,125.31,125.3,198.79645122]
[1743332777009,0.063,125.31,125.3,205.65645122]
[1743332788247,0.063,125.31,125.3,224.30610008]
[1743332788552,0.063,125.31,125.3,225.87470008]
[1743332788915,0.063,125.31,125.3,229.81921293]
[1743332789645,0.063,125.34,125.31,80.112987]
[1743332789936,0.063,125.34,125.31,198.73345122]
[1743332790247,0.063,125.34,125.32,6.0185]
[1743332791922,0.063,125.34,125.32,86.131487]
[1743332793629,0.063,125.34,125.32,80.112987]
[1743332793836,0.063,125.34,125.32,86.972987]
[1743332794948,0.063,125.34,125.32,205.59345122]
[1743332798852,0.063,125.34,125.32,198.73345122]
[1743332799336,0.063,125.37,125.34,118.55746422]
[1743332799646,0.063,125.37,125.35,6.86]
[1743332801164,0.063,125.37,125.35,205.53045122]
[1743332801468,226.51816259,125.43,125.35,205.53045122]
[1743332802860,207.86851373,125.43,125.35,205.53045122]
[1743332803151,1.6584,125.43,125.35,205.53045122]
[1743332803357,6.6908,125.45,125.38,20.0]
[1743332803658,6.6908,125.45,125.39,6.86]
[1743332808657,18.85481043,125.45,125.39,205.53045122]
[1743332811270,18.85481043,125.45,125.39,205.59345122]
[1743332816867,0.063,125.45,125.39,205.59345122]
[1743332821485,0.063,125.45,125.44,118.49446422]
[1743332821678,0.063,125.45,125.44,205.46745122]
[1743332825379,48.04,125.49,125.44,205.46745122]
[1743332831292,66.83181043,125.48,125.44,80.112987]
[1743332831461,1.6351,125.47,125.44,80.112987]
[1743332831790,66.83181043,125.48,125.44,80.112987]
[1743332834887,49.6751,125.5,125.44,80.112987]
[1743332835071,0.03,125.48,125.45,8.3966]
[1743332835258,0.03,125.48,125.45,14.5686]
[1743332840808,0.03,125.48,125.45,230.181587]
[1743332844101,0.03,125.48,125.45,222.472987]
[1743332844310,0.03,125.48,125.45,215.612987]
[1743332846617,0.03,125.48,125.45,80.112987]
[1743332846795,66.71964886,125.48,125.45,80.112987]
[1743332847117,66.71964886,125.48,125.45,80.175987]
[1743332847487,0.14216157,125.47,125.45,80.175987]
[1743332848218,0.03,125.48,125.45,80.175987]
[1743332849493,48.04,125.47,125.45,80.175987]
[1743332855132,66.68964886,125.46,125.45,0.063]
[1743332857221,66.83181043,125.46,125.45,0.063]
[1743332861914,66.68964886,125.47,125.45,0.063]
[1743332867141,0.03,125.48,125.45,0.063]
[1743332868040,0.03,125.48,125.45,135.563]
[1743332871141,18.67964886,125.48,125.45,135.563]
[1743332871331,66.71964886,125.48,125.45,135.563]
[1743332873042,66.71964886,125.48,125.45,0.063]
[1743332873743,0.03,125.48,125.45,0.063]
[1743332876536,0.03,125.48,125.45,135.563]
[1743332885453,48.07,125.48,125.45,0.063]
[1743332890556,66.83181043,125.47,125.45,0.063]
[1743332893366,48.07,125.48,125.45,0.063]
[1743332895064,0.03,125.48,125.45,0.063]
[1743332895253,0.03,125.48,125.45,135.563]
[1743332902650,0.03,125.48,125.45,215.675987]
[1743332927672,0.03,125.48,125.46,6.387]
[1743332927992,0.03,125.48,125.47,1.6275]
[1743332929299,0.03,125.51,125.48,135.47]
[1743332929501,0.03,125.51,125.49,6.84]
[1743332934795,0.03,125.51,125.49,222.422987]
[1743332962745,0.03,125.56,125.53,1.6502]
[1743332963040,0.03,125.56,125.54,6.84]
[1743332964337,0.03,125.56,125.55,18.933972]
[1743332967141,0.03,125.56,125.55,19.21829514]
[1743332970748,0.03,125.56,125.55,19.71829514]
[1743332971638,0.03,125.56,125.55,31.40109089]
[1743332972249,0.03,125.56,125.55,30.61676775]
[1743332972961,0.03,125.61,125.57,80.022987]
[1743332973264,0.03,125.61,125.58,6.84]
[1743332978633,0.03,125.61,125.58,222.332987]
[1743332981543,0.03,125.61,125.58,215.492987]
[1743332981749,0.03,125.61,125.59,6.84]
[1743332982955,0.03,125.62,125.61,135.44]
[1743332983162,0.03,125.62,125.61,215.462987]
[1743332990465,0.03,125.62,125.61,215.525987]
[1743332992271,0.03,125.64,125.61,215.525987]
[1743332992272,0.03,125.64,125.63,135.41]
[1743332992571,0.03,125.64,125.63,142.25]
[1743332995146,0.03,125.64,125.63,168.948372]
[1743332997972,0.03,125.64,125.63,142.25]
[1743332999274,0.03,125.69,125.64,79.992987]
[1743332999475,0.03,125.69,125.67,20.0]
[1743332999681,0.03,125.69,125.68,6.84]
[1743333007978,0.03,125.69,125.68,222.242987]
[1743333015483,8.2951,125.75,125.69,135.38]
[1743333015693,8.2951,125.75,125.69,215.372987]
[1743333018793,0.03,125.75,125.69,215.372987]
[1743333023577,55.8208,125.78,125.69,215.372987]
[1743333027005,55.8208,125.78,125.69,215.435987]
[1743333027492,55.8508,125.78,125.69,215.435987]
[1743333039610,47.1,125.77,125.7,7.7897]
[1743333040315,47.1,125.77,125.7,223.162687]
[1743333040704,1.6752,125.78,125.7,223.162687]
[1743333045210,1.6752,125.78,125.71,6.82]
[1743333046118,1.6752,125.78,125.71,222.192987]